Workbook

Sheet 1. Info
AB1: Algoma Power Inc.
AB2: Atikokan Hydro Inc.
AB3: Attawapiskat Power Corporation
AB4: Bluewater Power Distribution Corporation
AB5: Brantford Power Inc.
AB6: Burlington Hydro Inc.
AB7: Canadian Niagara Power Inc.
AB8: Centre Wellington Hydro Ltd.
AB9: Chapleau Public Utilities Corporation
AB10: COLLUS PowerStream Corp.
AB11: Cooperative Hydro Embrun Inc.
AB12: E.L.K. Energy Inc.
A13: Drop-down lists are shaded blue; Input cells are shaded green. | AB13: Energy + Inc.
AB14: Enersource Hydro Mississauga Inc.
C15: Utility Name | D15: Innpower Corporation | AB15: Entegrus Powerlines Inc.
AB16: EnWin Utilities Ltd.
C17: Service Territory | AB17: Erie Thames Powerlines Corporation
AB18: Espanola Regional Hydro Distribution Corporation
C19: Assigned EB Number | D19: EB-2016-0085 | AB19: Essex Powerlines Corporation
AB20: Festival Hydro Inc.
C21: Name and Title | D21: Brenda L Pinke | AB21: Fort Albany Power Corporation
AB22: Fort Frances Power Corporation
C23: Phone Number | D23: 705-431-6870 Ext 262 | AB23: Greater Sudbury Hydro Inc.
AB24: Grimsby Power Inc.
C25: Email Address | D25: brendap@innpower.ca | AB25: Guelph Hydro Electric Systems Inc.
AB26: Haldimand County Hydro Inc.
C27: Date | AB27: Halton Hills Hydro Inc.
AB28: Hearst Power Distribution Company Limited
C29: Last COS Re-based Year | D29: 2013 | AB29: Horizon Utilities Corporation
AB30: Hydro 2000 Inc.
AB31: Hydro Hawkesbury Inc.
AB32: Hydro One Brampton Networks Inc.
AB33: Hydro One Networks Inc.
AB34: Hydro One Remote Communities Inc.
AB35: Hydro Ottawa Limited
AB36: Innpower Corporation
AB37: Kashechewan Power Corporation
AB38: Kenora Hydro Electric Corporation Ltd.
AB39: Kingston Hydro Corporation
AB40: Kitchener-Wilmot Hydro Inc.
AB41: Lakefront Utilities Inc.
AB42: Lakeland Power Distribution Ltd.
AB43: London Hydro Inc.
AB44: Midland Power Utility Corporation
AB45: Milton Hydro Distribution Inc.
AB46: Newmarket-Tay Power Distribution Ltd.
AB47: Niagara Peninsula Energy Inc.
AB48: Niagara-on-the-Lake Hydro Inc.
AB49: North Bay Hydro Distribution Limited
AB50: Northern Ontario Wires Inc.
AB51: Oakville Hydro Electricity Distribution Inc.
AB52: Orangeville Hydro Limited
AB53: Orillia Power Distribution Corporation
AB54: Oshawa PUC Networks Inc.
AB55: Ottawa River Power Corporation
AB56: Peterborough Distribution Incorporated
AB57: PowerStream Inc.
AB58: PUC Distribution Inc.
AB59: Renfrew Hydro Inc.
AB60: Rideau St. Lawrence Distribution Inc.
AB61: Sioux Lookout Hydro Inc.
AB62: St. Thomas Energy Inc.
AB63: Thunder Bay Hydro Electricity Distribution Inc.
AB64: Tillsonburg Hydro Inc.
AB65: Toronto Hydro-Electric System Limited
AB66: Veridian Connections Inc.
AB67: Wasaga Distribution Inc.
AB68: Waterloo North Hydro Inc.
AB69: Welland Hydro-Electric System Corp.
AB70: Wellington North Power Inc.
AB71: West Coast Huron Energy Inc.
AB72: Westario Power Inc.
AB73: Whitby Hydro Electric Corporation
AB74: Woodstock Hydro Services Inc.

Sheet 2. Table of Contents
D20: 1. Info | I20: 6. Historical Wholesale
D22: 2. Table of Contents | I22: 7. Current Wholesale
D24: 3. Rate Classes | I24: 8. Forecast Wholesale
D26: 4. RRR Data | I26: 9. RTSR Rates to Forecast
D28: 5. UTRs and Sub-Transmission

Sheet 3. Rate Classes
C13: 1. Select the appropriate rate classes that appear on your most recent Board-Approved Tariff of Rates and Charges. 2. Enter the RTS Network and Connection Rate as it appears on the Tariff of Rates and Charges
C15: Rate Class | E15: Unit | G15: RTSR-Network | I15: RTSR-Connection
C17: Residential | E17: kWh | G17: 0.0057 | I17: 0.0041 | L17: =IF(OR(ISBLANK(C17), ISERROR(FIND("Choose", C17))=FALSE), 0, 1) -> 1 | M17: ="C" & ROW(C17) -> C17 | N17: =IF(OR(C17="General Service Intermediate Rate Class 1,000 To 4,999 kW (formerly General Service > 50 kW Customers)", C17="General Service Intermediate Rate Class 1,000 To 4,999 kW (formerly Large Use Customers)"), "x", "") ->  | W17: Choose Rate Class
C18: General Service Less Than 50 kW | E18: kWh | G18: 0.0052 | I18: 0.0039 | L18: 1 | M18: C18 | N18: =IF(OR(C18="General Service Intermediate Rate Class 1,000 To 4,999 kW (formerly General Service > 50 kW Customers)", C18="General Service Intermediate Rate Class 1,000 To 4,999 kW (formerly Large Use Customers)"), "x", "") ->  | W18: Residential
C19: General Service 50 to 4,999 kW | E19: kW | G19: 2.0385 | I19: 2.1757 | L19: 1 | M19: C19 | W19: Residential Regular
C20: General Service 50 to 4,999 kW – Interval Metered | E20: kW | G20: 2.0385 | I20: 2.0385 | L20: 1 | M20: C20 | W20: Residential Urban
C21: Unmetered Scattered Load | E21: kWh | G21: 0.0052 | I21: 0.0039 | L21: 1 | M21: C21 | W21: Residential Urban Year-Round
C22: Sentinel Lighting | E22: kW | G22: 1.5954 | I22: 1.7004 | L22: 1 | M22: C22 | W22: Residential Suburban
C23: Street Lighting | E23: kW | G23: 1.5873 | I23: 1.1469 | L23: 1 | M23: C23 | W23: Residential Suburban Seasonal
C24: Choose Rate Class | L24: 0 | M24: C24 | W24: Residential Suburban Year Round
C25: Choose Rate Class | L25: 0 | M25: C25 | W25: Residential - Time of Use
C26: Choose Rate Class | L26: 0 | M26: C26 | W26: Residential - Hensall
C27: Choose Rate Class | L27: 0 | M27: C27 | W27: Residential – High Density [R1]
C28: Choose Rate Class | L28: 0 | M28: C28 | W28: Residential – Normal Density [R2]
C29: Choose Rate Class | L29: 0 | M29: C29 | W29: Seasonal Residential – High Density [R3]
C30: Choose Rate Class | L30: 0 | M30: C30 | W30: Seasonal Residential – Normal Density [R4]
C31: Choose Rate Class | L31: 0 | M31: C31 | W31: Residential – Urban [UR]
C32: Choose Rate Class | L32: 0 | M32: C32 | W32: General Service Less Than 50 kW
C33: Choose Rate Class | L33: 0 | M33: C33 | W33: General Service Less Than 50 kW – Single Phase energy-billed [G1]
C34: Choose Rate Class | L34: 0 | M34: C34 | W34: General Service Less Than 50 kW – Three Phase energy-billed [G3]
C35: Choose Rate Class | L35: 0 | M35: C35 | W35: General Service Less Than 50 kW – Transmission Class energy-billed [T]
C36: Choose Rate Class | L36: 0 | M36: C36 | W36: General Service Less Than 50 kW – Urban energy-billed [UG]
C37: Choose Rate Class | L37: 0 | M37: C37 | W37: Westport Sewage Treatment Plant
C38: Choose Rate Class | L38: 0 | M38: C38 | W38: Small Commercial and USL - per meter
N39: =COUNTIF(N17:N38, "x") -> 0 | W39: Small Commercial and USL - per connection
W40: Farms – Single Phase energy-billed [F1]
W41: General Service 50 to 499 kW
W42: General Service 50 to 699 kW
W43: General Service 50 to 999 kW
W44: General Service 50 to 999 kW - Interval Metered
W45: General Service 50 to 1,000 kW
W46: General Service 50 to 1,000 kW - Interval Meters
W47: General Service 50 to 1,000 kW - Non Interval Meters
W48: General Service 50 to 1,499 kW
W49: General Service 50 to 1,499 kW - Interval Metered
W50: General Service 50 to 2,499 kW
W51: General Service 50 to 2,999 kW
W52: General Service 50 to 2,999 kW - Time of Use
W53: General Service 50 to 4,999 kW
W54: General Service 50 to 4,999 kW – Interval Metered
W55: General Service 50 to 4,999 kW - Time of Use
W56: General Service 50 to 4,999 kW (CoGeneration)
W57: General Service 50 to 4,999 kW (formerly Time of Use)
W58: General Service 500 to 4,999 kW
W59: General Service 700 to 4,999 kW
W60: General Service 1,000 to 2,999 kW
W61: General Service 1,000 to 4,999 kW
W62: General Service 1,000 to 4,999 kW - Interval Meters
W63: General Service 1,000 To 4,999 kW (co-generation)
W64: General Service Greater Than 1,000 kW
W65: General Service Intermediate Rate Class 1,000 To 4,999 kW (formerly Large Use Customers)
W66: General Service Intermediate Rate Class 1,000 To 4,999 kW (formerly General Service > 50 kW Customers)
W67: General Service 1,500 to 4,999 kW
W68: General Service Equal To Or Greater Than 1,500 kW
W69: General Service Equal To Or Greater Than 1,500 kW - Interval Metered
W70: General Service Intermediate 1,000 To 4,999 kW
W71: General Service 2,500 to 4,999 kW
W72: General Service 3,000 to 4,999 kW
W73: General Service 3,000 to 4,999 kW - Interval Metered
W74: General Service 3,000 to 4,999 kW - Intermediate Use
W75: General Service 3,000 to 4,999 kW - Time of Use
W76: Intermediate With Self Generation
W77: General Service - Commercial
W78: General Service - Institutional
W79: Farms – Three Phase energy-billed [F3]
W80: Large Use
W81: Large Use - Regular
W82: Large Use > 5000 kW
W83: Large Use - 3TS
W84: Large Use - Ford Annex
W85: Unmetered Scattered Load
W86: Sentinel Lighting
W87: Street Lighting
W88: Embedded Distributor
W89: Low Voltage Wheeling Charge Rate
W90: Stand-By
W91: Standby Power
W92: Standby Power – INTERIM APPROVAL
W93: Standby Power - APPROVED ON AN INTERIM BASIS
W94: Standby - General Service 50 - 1,000 kW
W95: Standby Power General Service 50 to 1,499 kW
W96: Standby - General Service 1,000 - 5,000 kW
W97: Standby Power General Service 1,500 to 4,999 kW
W98: Standby - Large Use
W99: Standby Power General Service Large Use
W100: Standby Distribution Service

Sheet 4. RRR Data
B15: Rate Class | C15: Rate Description | D15: Unit | E15: Rate | F15: Non-Loss Adjusted Metered kWh | G15: Non-Loss Adjusted Metered kW | H15: Applicable Loss Factor eg: (1.0325) | I15: Loss Adjusted Billed kWh
B17: Residential | C17: RTSR - Network | D17: kWh | E17: 0.0057 | F17: 149311532 | G17: 0 | H17: 1.0678 | I17: =F17*H17 -> 159434853.9
B18: Residential | C18: RTSR - Connection | D18: kWh | E18: 0.0041 | F18: 149311532 | G18: 0 | H18: 1.0678 | I18: =F18*H18 -> 159434853.9
B19: General Service Less Than 50 kW | C19: RTSR - Network | D19: kWh | E19: 0.0052 | F19: 33730295 | G19: 0 | H19: 1.0678 | I19: =F19*H19 -> 36017209
B20: General Service Less Than 50 kW | C20: RTSR - Connection | D20: kWh | E20: 0.0039 | F20: 33730295 | G20: 0 | H20: 1.0678 | I20: =F20*H20 -> 36017209
B21: General Service 50 to 4,999 kW | C21: RTSR - Network | D21: kW | E21: 2.0385 | F21: 19751251 | G21: 66619
B22: General Service 50 to 4,999 kW | C22: RTSR - Connection | D22: kW | E22: 2.1757 | F22: 19751251 | G22: 66619
B23: General Service 50 to 4,999 kW – Interval Metered | C23: RTSR - Network | D23: kW | E23: 2.0385 | F23: 34967663 | G23: 74982
B24: General Service 50 to 4,999 kW – Interval Metered | C24: RTSR - Connection | D24: kW | E24: 2.0385 | F24: 34967663 | G24: 74982
B25: Unmetered Scattered Load | C25: RTSR - Network | D25: kWh | E25: 0.0052 | F25: 463092 | G25: 0 | H25: 1.0678 | I25: =F25*H25 -> 494489.6376
B26: Unmetered Scattered Load | C26: RTSR - Connection | D26: kWh | E26: 0.0039 | F26: 463092 | G26: 0 | H26: 1.0678 | I26: =F26*H26 -> 494489.6376
B27: Sentinel Lighting | C27: RTSR - Network | D27: kW | E27: 1.5954 | F27: 107542 | G27: 298
B28: Sentinel Lighting | C28: RTSR - Connection | D28: kW | E28: 1.7004 | F28: 107542 | G28: 298
B29: Street Lighting | C29: RTSR - Network | D29: kW | E29: 1.5873 | F29: 1016454 | G29: 2886
B30: Street Lighting | C30: RTSR - Connection | D30: kW | E30: 1.1469 | F30: 1016454 | G30: 2886

Sheet 5. UTRs and Sub-Transmission
B18: Uniform Transmission Rates | C18: Unit | E18: 2015 | H18: 2016 | J18: 2017
B20: Rate Description | E20: Rate | H20: Rate | J20: Rate
B22: Network Service Rate | C22: kW | E22: 3.78 | H22: 3.66 | J22: 3.66
B24: Line Connection Service Rate | C24: kW | E24: 0.86 | H24: 0.87 | J24: 0.87
B26: Transformation Connection Service Rate | C26: kW | E26: 2 | H26: 2.02 | J26: 2.02
B29: Hydro One Sub-Transmission Rates | C29: Unit | E29: 2015 - 2016 | H29: 2016 | J29: 2017
E30: Jan - April 2015 | F30: May 2015 - Jan 2016 | H30: Feb - Dec 2016
B34: Rate Description | E34: Rate | H34: Rate | J34: Rate
B36: Network Service Rate | C36: kW | E36: 3.23 | F36: 3.4121 | H36: 3.3396 | J36: 3.1942
B38: Line Connection Service Rate | C38: kW | E38: 0.65 | F38: 0.7879 | H38: 0.7791 | J38: 0.771
B40: Transformation Connection Service Rate | C40: kW | E40: 1.62 | F40: 1.8018 | H40: 1.7713 | J40: 1.7493
B42: Both Line and Transformation Connection Service Rate | C42: kW | E42: =E40+E38 -> 2.27 | F42: =SUM(F40,F38) -> 2.5897 | H42: =SUM(H40,H38) -> 2.5504 | J42: =SUM(J40,J38) -> 2.5203
B45: If needed, add extra host here. (I) | C45: Unit | E45: 2015 | H45: 2016 | J45: 2017
B49: Rate Description | E49: Rate | H49: Rate | J49: Rate
B51: Network Service Rate | C51: kW
B53: Line Connection Service Rate | C53: kW
B55: Transformation Connection Service Rate | C55: kW
B57: Both Line and Transformation Connection Service Rate | C57: kW | E57: =SUM(E53,E55) -> 0 | H57: =SUM(H53,H55) -> 0 | J57: =J55+J53 -> 0
B60: If needed, add extra host here. (II) | C60: Unit | E60: Effective January 1, 2014 | H60: Effective January 1, 2015 | J60: Effective January 1, 2016
B64: Rate Description | E64: Rate | H64: Rate | J64: Rate
B66: Network Service Rate | C66: kW
B68: Line Connection Service Rate | C68: kW
B70: Transformation Connection Service Rate | C70: kW
B72: Both Line and Transformation Connection Service Rate | C72: kW | E72: =SUM(E68,E70) -> 0 | H72: =SUM(H68,H70) -> 0 | J72: =J70+J68 -> 0
E74: Historical 2015 | H74: Current 2016 | J74: Forecast 2017
B75: Low Voltage Switchgear Credit (if applicable, enter as a negative value) | C75: $

Sheet 6. Historical Wholesale
B21: IESO | D21: Network | H21: Line Connection | L21: Transformation Connection | P21: Total Line
B22: Month | D22: Units Billed | E22: Rate | F22: Amount | H22: Units Billed | I22: Rate | J22: Amount | L22: Units Billed | M22: Rate | N22: Amount | P22: Amount
B24: January | I24: =IF(H24<>0,J24/H24,0) -> 0 | M24: =IF(L24<>0,N24/L24,0) -> 0 | P24: =J24+N24 -> 0
B25: February | I25: =IF(H25<>0,J25/H25,0) -> 0 | M25: =IF(L25<>0,N25/L25,0) -> 0 | P25: 0
B26: March | I26: 0 | M26: 0 | P26: 0
B27: April | I27: 0 | M27: 0 | P27: 0
B28: May | I28: 0 | M28: 0 | P28: 0
B29: June | I29: 0 | M29: 0 | P29: 0
B30: July | I30: 0 | M30: 0 | P30: 0
B31: August | I31: 0 | M31: 0 | P31: 0
B32: September | I32: 0 | M32: 0 | P32: 0
B33: October | I33: 0 | M33: 0 | P33: 0
B34: November | I34: 0 | M34: 0 | P34: 0
B35: December | I35: 0 | M35: 0 | P35: 0
B37: Total | D37: =SUM(D24:D35) -> 0 | E37: =IF(D37<>0,F37/D37,0) -> 0 | F37: =SUM(F24:F35) -> 0 | H37: =SUM(H24:H35) -> 0 | I37: =IF(H37<>0,J37/H37,0) -> 0 | J37: =SUM(J24:J35) -> 0 | L37: =SUM(L24:L35) -> 0 | M37: =IF(L37<>0,N37/L37,0) -> 0 | N37: =SUM(N24:N35) -> 0 | P37: =SUM(P24:P35) -> 0
B39: Hydro One | D39: Network | H39: Line Connection | L39: Transformation Connection | P39: Total Line
B41: Month | D41: Units Billed | E41: Rate | F41: Amount | H41: Units Billed | I41: Rate | J41: Amount | L41: Units Billed | M41: Rate | N41: Amount | P41: Amount
B43: January | D43: 47686.71 | E43: 3.23 | F43: 154028.0733 | H43: 47837.45 | I43: 0.65 | J43: 31094.3425 | L43: 47837.45 | M43: 1.62 | N43: 77496.669 | P43: =J43+N43 -> 108591.0115
B44: February | D44: 49315.15 | E44: 3.23 | F44: 159287.9345 | H44: 50980.83 | I44: 0.65 | J44: 33137.5395 | L44: 50980.83 | M44: 1.62 | N44: 82588.9446 | P44: 115726.4841
B45: March | D45: 36964.64 | E45: 3.23 | F45: 119395.7872 | H45: 40349.38 | I45: 0.65 | J45: 26227.097 | L45: 40349.38 | M45: 1.62 | N45: 65365.9956 | P45: 91593.0926
B46: April | D46: 34228 | E46: 3.23/3.41 | F46: 111892.0853 | H46: 36126.46 | I46: 0.6795504393 | J46: 24549.75176 | L46: 36126.46 | M46: 1.658957722 | N46: 59932.26979 | P46: 84482.02155
B47: May | D47: 37837.44 | E47: 3.4121 | F47: 129105.129 | H47: 38096.48 | I47: 0.7879 | J47: 30016.21659 | L47: 38096.48 | M47: 1.8018 | N47: 68642.23766 | P47: 98658.45426
B48: June | D48: 40588.63 | E48: 3.4121 | F48: 138492.4644 | H48: 40594.4 | I48: 0.7879 | J48: 31984.32776 | L48: 40594.4 | M48: 1.8018 | N48: 73142.98992 | P48: 105127.3177
B49: July | D49: 48974.8 | E49: 3.4121 | F49: 167106.9151 | H49: 48974.8 | I49: 0.7879 | J49: 38587.24492 | L49: 48974.8 | M49: 1.8018 | N49: 88242.79464 | P49: 126830.0396
B50: August | D50: 48999.38 | E50: 3.4121 | F50: 167190.7845 | H50: 50218.25 | I50: 0.7879 | J50: 39566.95918 | L50: 50218.25 | M50: 1.8018 | N50: 90483.24285 | P50: 130050.202
B51: September | D51: 39102.91 | E51: 3.4121 | F51: 133423.0392 | H51: 41214.53 | I51: 0.7879 | J51: 32472.92819 | L51: 41214.53 | M51: 1.8018 | N51: 74260.34015 | P51: 106733.2683
B52: October | D52: 38719.58 | E52: 3.4121 | F52: 132115.0789 | H52: 39919.84 | I52: 0.7879 | J52: 31452.84194 | L52: 39919.84 | M52: 1.8018 | N52: 71927.56771 | P52: 103380.4096
B53: November | D53: 47999.06 | E53: 3.4121 | F53: 163777.5926 | H53: 50241.05 | I53: 0.7879 | J53: 39584.9233 | L53: 50241.05 | M53: 1.8018 | N53: 90524.32389 | P53: 130109.2472
B54: December | D54: 39783.6 | E54: 3.4121 | F54: 135745.6216 | H54: 43105.01 | I54: 0.7879 | J54: 33962.43738 | L54: 43105.01 | M54: 1.8018 | N54: 77666.60702 | P54: 111629.0444
B56: Total | D56: =SUM(D43:D54) -> 510199.9 | E56: =IF(D56<>0,F56/D56,0) -> 3.354686086 | F56: =SUM(F43:F54) -> 1711560.506 | H56: =SUM(H43:H54) -> 527658.48 | I56: =IF(H56<>0,J56/H56,0) -> 0.7441112479 | J56: =SUM(J43:J54) -> 392636.61 | L56: =SUM(L43:L54) -> 527658.48 | M56: =IF(L56<>0,N56/L56,0) -> 1.744071246 | N56: =SUM(N43:N54) -> 920273.9828 | P56: =SUM(P43:P54) -> 1312910.593
B58: Add Extra Host Here (I) | D58: Network | H58: Line Connection | L58: Transformation Connection | P58: Total Line
B59: (if needed)
B60: Month | D60: Units Billed | E60: Rate | F60: Amount | H60: Units Billed | I60: Rate | J60: Amount | L60: Units Billed | M60: Rate | N60: Amount | P60: Amount
B62: January | E62: =IF(D62<>0,F62/D62,0) -> 0 | I62: =IF(H62<>0,J62/H62,0) -> 0 | M62: =IF(L62<>0,N62/L62,0) -> 0 | P62: =J62+N62 -> 0
B63: February | E63: 0 | I63: 0 | M63: 0 | P63: 0
B64: March | E64: 0 | I64: 0 | M64: 0 | P64: 0
B65: April | E65: 0 | I65: 0 | M65: 0 | P65: 0
B66: May | E66: 0 | I66: 0 | M66: 0 | P66: 0
B67: June | E67: 0 | I67: 0 | M67: 0 | P67: 0
B68: July | E68: 0 | I68: 0 | M68: 0 | P68: 0
B69: August | E69: 0 | I69: 0 | M69: 0 | P69: 0
B70: September | E70: 0 | I70: 0 | M70: 0 | P70: 0
B71: October | E71: 0 | I71: 0 | M71: 0 | P71: 0
B72: November | E72: 0 | I72: 0 | M72: 0 | P72: 0
B73: December | E73: 0 | I73: 0 | M73: 0 | P73: 0
B75: Total | D75: =SUM(D62:D73) -> 0 | E75: =IF(D75<>0,F75/D75,0) -> 0 | F75: =SUM(F62:F73) -> 0 | H75: =SUM(H62:H73) -> 0 | I75: =IF(H75<>0,J75/H75,0) -> 0 | J75: =SUM(J62:J73) -> 0 | L75: =SUM(L62:L73) -> 0 | M75: =IF(L75<>0,N75/L75,0) -> 0 | N75: =SUM(N62:N73) -> 0 | P75: =SUM(P62:P73) -> 0
B77: Add Extra Host Here (II) | D77: Network | H77: Line Connection | L77: Transformation Connection | P77: Total Line
B78: (if needed)
B79: Month | D79: Units Billed | E79: Rate | F79: Amount | H79: Units Billed | I79: Rate | J79: Amount | L79: Units Billed | M79: Rate | N79: Amount | P79: Amount
B81: January | E81: =IF(D81<>0,F81/D81,0) -> 0 | I81: =IF(H81<>0,J81/H81,0) -> 0 | M81: =IF(L81<>0,N81/L81,0) -> 0 | P81: =J81+N81 -> 0
B82: February | E82: 0 | I82: 0 | M82: 0 | P82: 0
B83: March | E83: 0 | I83: 0 | M83: 0 | P83: 0
B84: April | E84: 0 | I84: 0 | M84: 0 | P84: 0
B85: May | E85: 0 | I85: 0 | M85: 0 | P85: 0
B86: June | E86: 0 | I86: 0 | M86: 0 | P86: 0
B87: July | E87: 0 | I87: 0 | M87: 0 | P87: 0
B88: August | E88: 0 | I88: 0 | M88: 0 | P88: 0
B89: September | E89: 0 | I89: 0 | M89: 0 | P89: 0
B90: October | E90: 0 | I90: 0 | M90: 0 | P90: 0
B91: November | E91: 0 | I91: 0 | M91: 0 | P91: 0
B92: December | E92: 0 | I92: 0 | M92: 0 | P92: 0
B94: Total | D94: =SUM(D81:D92) -> 0 | E94: =IF(D94<>0,F94/D94,0) -> 0 | F94: =SUM(F81:F92) -> 0 | H94: =SUM(H81:H92) -> 0 | I94: =IF(H94<>0,J94/H94,0) -> 0 | J94: =SUM(J81:J92) -> 0 | L94: =SUM(L81:L92) -> 0 | M94: =IF(L94<>0,N94/L94,0) -> 0 | N94: =SUM(N81:N92) -> 0 | P94: =SUM(P81:P92) -> 0
B96: Total | D96: Network | H96: Line Connection | L96: Transformation Connection | P96: Total Line
B98: Month | D98: Units Billed | E98: Rate | F98: Amount | H98: Units Billed | I98: Rate | J98: Amount | L98: Units Billed | M98: Rate | N98: Amount | P98: Amount
B100: January | D100: =D24+D43+D62+D81 -> 47686.71 | E100: =IF(D100<>0,F100/D100,0) -> 3.23 | F100: =F24+F43+F62+F81 -> 154028.0733 | H100: =H24+H43+H62+H81 -> 47837.45 | I100: =IF(H100<>0,J100/H100,0) -> 0.65 | J100: =J24+J43+J62+J81 -> 31094.3425 | L100: =L24+L43+L62+L81 -> 47837.45 | M100: =IF(L100<>0,N100/L100,0) -> 1.62 | N100: =N24+N43+N62+N81 -> 77496.669 | P100: =J100+N100 -> 108591.0115
B101: February | D101: =D25+D44+D63+D82 -> 49315.15 | E101: 3.23 | F101: =F25+F44+F63+F82 -> 159287.9345 | H101: =H25+H44+H63+H82 -> 50980.83 | I101: 0.65 | J101: =J25+J44+J63+J82 -> 33137.5395 | L101: =L25+L44+L63+L82 -> 50980.83 | M101: 1.62 | N101: =N25+N44+N63+N82 -> 82588.9446 | P101: 115726.4841
B102: March | D102: 36964.64 | E102: 3.23 | F102: 119395.7872 | H102: 40349.38 | I102: 0.65 | J102: 26227.097 | L102: 40349.38 | M102: 1.62 | N102: 65365.9956 | P102: 91593.0926
B103: April | D103: 34228 | E103: 3.269022009 | F103: 111892.0853 | H103: 36126.46 | I103: 0.6795504393 | J103: 24549.75176 | L103: 36126.46 | M103: 1.658957722 | N103: 59932.26979 | P103: 84482.02155
B104: May | D104: 37837.44 | E104: 3.4121 | F104: 129105.129 | H104: 38096.48 | I104: 0.7879 | J104: 30016.21659 | L104: 38096.48 | M104: 1.8018 | N104: 68642.23766 | P104: 98658.45426
B105: June | D105: 40588.63 | E105: 3.4121 | F105: =F29+F48+F67+F86 -> 138492.4644 | H105: 40594.4 | I105: 0.7879 | J105: 31984.32776 | L105: 40594.4 | M105: 1.8018 | N105: 73142.98992 | P105: 105127.3177
B106: July | D106: 48974.8 | E106: 3.4121 | F106: 167106.9151 | H106: 48974.8 | I106: 0.7879 | J106: 38587.24492 | L106: 48974.8 | M106: 1.8018 | N106: 88242.79464 | P106: 126830.0396
B107: August | D107: 48999.38 | E107: 3.4121 | F107: 167190.7845 | H107: 50218.25 | I107: 0.7879 | J107: 39566.95918 | L107: 50218.25 | M107: 1.8018 | N107: 90483.24285 | P107: 130050.202
B108: September | D108: 39102.91 | E108: 3.4121 | F108: 133423.0392 | H108: 41214.53 | I108: 0.7879 | J108: 32472.92819 | L108: 41214.53 | M108: 1.8018 | N108: 74260.34015 | P108: 106733.2683
B109: October | D109: 38719.58 | E109: 3.4121 | F109: 132115.0789 | H109: 39919.84 | I109: 0.7879 | J109: 31452.84194 | L109: 39919.84 | M109: 1.8018 | N109: 71927.56771 | P109: 103380.4096
B110: November | D110: 47999.06 | E110: 3.4121 | F110: 163777.5926 | H110: 50241.05 | I110: 0.7879 | J110: 39584.9233 | L110: 50241.05 | M110: 1.8018 | N110: 90524.32389 | P110: 130109.2472
B111: December | D111: 39783.6 | E111: 3.4121 | F111: 135745.6216 | H111: 43105.01 | I111: 0.7879 | J111: 33962.43738 | L111: 43105.01 | M111: 1.8018 | N111: 77666.60702 | P111: 111629.0444
B113: Total | D113: =SUM(D100:D111) -> 510199.9 | E113: =IF(D113<>0,F113/D113,0) -> 3.354686086 | F113: =SUM(F100:F111) -> 1711560.506 | H113: =SUM(H100:H111) -> 527658.48 | I113: =IF(H113<>0,J113/H113,0) -> 0.7441112479 | J113: =SUM(J100:J111) -> 392636.61 | L113: =SUM(L100:L111) -> 527658.48 | M113: =IF(L113<>0,N113/L113,0) -> 1.744071246 | N113: =SUM(N100:N111) -> 920273.9828 | P113: =SUM(P100:P111) -> 1312910.593
N115: Low Voltage Switchgear Credit (if applicable) | P115: ='5. UTRs and Sub-Transmission'!E75 -> 0
N117: Total including deduction for Low Voltage Switchgear Credit | P117: =P113+P115 -> 1312910.593

Sheet 7. Current Wholesale
B13: The purpose of this sheet is to calculate the expected billing when current 2016 Uniform Transmission Rates are applied against historical 2015 transmission units.
B20: IESO | D20: Network | H20: Line Connection | L20: Transformation Connection | P20: Total Line
B22: Month | D22: Units Billed | E22: Rate | F22: Amount | H22: Units Billed | I22: Rate | J22: Amount | L22: Units Billed | M22: Rate | N22: Amount | P22: Amount
B24: January | D24: ='6. Historical Wholesale'!D24 -> 0 | E24: ='5. UTRs and Sub-Transmission'!H22 -> 3.66 | F24: =D24*E24 -> 0 | H24: ='6. Historical Wholesale'!H24 -> 0 | I24: ='5. UTRs and Sub-Transmission'!H24 -> 0.87 | J24: =H24*I24 -> 0 | L24: ='6. Historical Wholesale'!L24 -> 0 | M24: ='5. UTRs and Sub-Transmission'!H26 -> 2.02 | N24: =L24*M24 -> 0 | P24: =J24+N24 -> 0
B25: February | D25: ='6. Historical Wholesale'!D25 -> 0 | E25: =E24 -> 3.66 | F25: =D25*E25 -> 0 | H25: ='6. Historical Wholesale'!H25 -> 0 | I25: =I24 -> 0.87 | J25: =H25*I25 -> 0 | L25: ='6. Historical Wholesale'!L25 -> 0 | M25: =M24 -> 2.02 | N25: =L25*M25 -> 0 | P25: 0
B26: March | D26: ='6. Historical Wholesale'!D26 -> 0 | E26: =E25 -> 3.66 | F26: 0 | H26: ='6. Historical Wholesale'!H26 -> 0 | I26: =I25 -> 0.87 | J26: 0 | L26: ='6. Historical Wholesale'!L26 -> 0 | M26: =M25 -> 2.02 | N26: 0 | P26: 0
B27: April | D27: ='6. Historical Wholesale'!D27 -> 0 | E27: 3.66 | F27: 0 | H27: ='6. Historical Wholesale'!H27 -> 0 | I27: 0.87 | J27: 0 | L27: ='6. Historical Wholesale'!L27 -> 0 | M27: 2.02 | N27: 0 | P27: 0
B28: May | D28: ='6. Historical Wholesale'!D28 -> 0 | E28: 3.66 | F28: 0 | H28: ='6. Historical Wholesale'!H28 -> 0 | I28: 0.87 | J28: 0 | L28: ='6. Historical Wholesale'!L28 -> 0 | M28: 2.02 | N28: 0 | P28: 0
B29: June | D29: ='6. Historical Wholesale'!D29 -> 0 | E29: 3.66 | F29: 0 | H29: ='6. Historical Wholesale'!H29 -> 0 | I29: 0.87 | J29: 0 | L29: ='6. Historical Wholesale'!L29 -> 0 | M29: 2.02 | N29: 0 | P29: 0
B30: July | D30: ='6. Historical Wholesale'!D30 -> 0 | E30: 3.66 | F30: 0 | H30: ='6. Historical Wholesale'!H30 -> 0 | I30: 0.87 | J30: 0 | L30: ='6. Historical Wholesale'!L30 -> 0 | M30: 2.02 | N30: 0 | P30: 0
B31: August | D31: ='6. Historical Wholesale'!D31 -> 0 | E31: 3.66 | F31: 0 | H31: ='6. Historical Wholesale'!H31 -> 0 | I31: 0.87 | J31: 0 | L31: ='6. Historical Wholesale'!L31 -> 0 | M31: 2.02 | N31: 0 | P31: 0
B32: September | D32: ='6. Historical Wholesale'!D32 -> 0 | E32: 3.66 | F32: 0 | H32: ='6. Historical Wholesale'!H32 -> 0 | I32: 0.87 | J32: 0 | L32: ='6. Historical Wholesale'!L32 -> 0 | M32: 2.02 | N32: 0 | P32: 0
B33: October | D33: ='6. Historical Wholesale'!D33 -> 0 | E33: 3.66 | F33: 0 | H33: ='6. Historical Wholesale'!H33 -> 0 | I33: 0.87 | J33: 0 | L33: ='6. Historical Wholesale'!L33 -> 0 | M33: 2.02 | N33: 0 | P33: 0
B34: November | D34: ='6. Historical Wholesale'!D34 -> 0 | E34: 3.66 | F34: 0 | H34: ='6. Historical Wholesale'!H34 -> 0 | I34: 0.87 | J34: 0 | L34: ='6. Historical Wholesale'!L34 -> 0 | M34: 2.02 | N34: 0 | P34: 0
B35: December | D35: ='6. Historical Wholesale'!D35 -> 0 | E35: 3.66 | F35: 0 | H35: ='6. Historical Wholesale'!H35 -> 0 | I35: 0.87 | J35: 0 | L35: ='6. Historical Wholesale'!L35 -> 0 | M35: 2.02 | N35: 0 | P35: 0
B37: Total | D37: =SUM(D24:D35) -> 0 | E37: =IF(D37<>0,F37/D37,0) -> 0 | F37: =SUM(F24:F35) -> 0 | H37: =SUM(H24:H35) -> 0 | I37: =IF(H37<>0,J37/H37,0) -> 0 | J37: =SUM(J24:J35) -> 0 | L37: =SUM(L24:L35) -> 0 | M37: =IF(L37<>0,N37/L37,0) -> 0 | N37: =SUM(N24:N35) -> 0 | P37: =SUM(P24:P35) -> 0
B39: Hydro One | D39: Network | H39: Line Connection | L39: Transformation Connection | P39: Total Line
B41: Month | D41: Units Billed | E41: Rate | F41: Amount | H41: Units Billed | I41: Rate | J41: Amount | L41: Units Billed | M41: Rate | N41: Amount | P41: Amount
B43: January | D43: ='6. Historical Wholesale'!D43 -> 47686.71 | E43: ='5. UTRs and Sub-Transmission'!$F$36 -> 3.4121 | F43: =D43*E43 -> 162711.8232 | H43: ='6. Historical Wholesale'!H43 -> 47837.45 | I43: ='5. UTRs and Sub-Transmission'!F38 -> 0.7879 | J43: =H43*I43 -> 37691.12686 | L43: ='6. Historical Wholesale'!L43 -> 47837.45 | M43: ='5. UTRs and Sub-Transmission'!F40 -> 1.8018 | N43: =L43*M43 -> 86193.51741 | P43: =J43+N43 -> 123884.6443
B44: February | D44: ='6. Historical Wholesale'!D44 -> 49315.15 | E44: ='5. UTRs and Sub-Transmission'!H36 -> 3.3396 | F44: =D44*E44 -> 164692.8749 | H44: ='6. Historical Wholesale'!H44 -> 50980.83 | I44: ='5. UTRs and Sub-Transmission'!H38 -> 0.7791 | J44: =H44*I44 -> 39719.16465 | L44: ='6. Historical Wholesale'!L44 -> 50980.83 | M44: ='5. UTRs and Sub-Transmission'!H40 -> 1.7713 | N44: =L44*M44 -> 90302.34418 | P44: 130021.5088
B45: March | D45: ='6. Historical Wholesale'!D45 -> 36964.64 | E45: =E44 -> 3.3396 | F45: 123447.1117 | H45: ='6. Historical Wholesale'!H45 -> 40349.38 | I45: =I44 -> 0.7791 | J45: 31436.20196 | L45: ='6. Historical Wholesale'!L45 -> 40349.38 | M45: =M44 -> 1.7713 | N45: 71470.85679 | P45: 102907.0588
B46: April | D46: ='6. Historical Wholesale'!D46 -> 34228 | E46: 3.3396 | F46: 114307.8288 | H46: ='6. Historical Wholesale'!H46 -> 36126.46 | I46: 0.7791 | J46: 28146.12499 | L46: ='6. Historical Wholesale'!L46 -> 36126.46 | M46: =M45 -> 1.7713 | N46: 63990.7986 | P46: 92136.92358
B47: May | D47: ='6. Historical Wholesale'!D47 -> 37837.44 | E47: 3.3396 | F47: 126361.9146 | H47: ='6. Historical Wholesale'!H47 -> 38096.48 | I47: 0.7791 | J47: 29680.96757 | L47: ='6. Historical Wholesale'!L47 -> 38096.48 | M47: 1.7713 | N47: 67480.29502 | P47: 97161.26259
B48: June | D48: ='6. Historical Wholesale'!D48 -> 40588.63 | E48: 3.3396 | F48: 135549.7887 | H48: ='6. Historical Wholesale'!H48 -> 40594.4 | I48: 0.7791 | J48: 31627.09704 | L48: ='6. Historical Wholesale'!L48 -> 40594.4 | M48: 1.7713 | N48: 71904.86072 | P48: 103531.9578
B49: July | D49: ='6. Historical Wholesale'!D49 -> 48974.8 | E49: 3.3396 | F49: 163556.2421 | H49: ='6. Historical Wholesale'!H49 -> 48974.8 | I49: 0.7791 | J49: 38156.26668 | L49: ='6. Historical Wholesale'!L49 -> 48974.8 | M49: 1.7713 | N49: 86749.06324 | P49: 124905.3299
B50: August | D50: ='6. Historical Wholesale'!D50 -> 48999.38 | E50: 3.3396 | F50: 163638.3294 | H50: ='6. Historical Wholesale'!H50 -> 50218.25 | I50: 0.7791 | J50: 39125.03857 | L50: ='6. Historical Wholesale'!L50 -> 50218.25 | M50: 1.7713 | N50: 88951.58623 | P50: 128076.6248
B51: September | D51: ='6. Historical Wholesale'!D51 -> 39102.91 | E51: 3.3396 | F51: 130588.0782 | H51: ='6. Historical Wholesale'!H51 -> 41214.53 | I51: 0.7791 | J51: 32110.24032 | L51: ='6. Historical Wholesale'!L51 -> 41214.53 | M51: 1.7713 | N51: 73003.29699 | P51: 105113.5373
B52: October | D52: ='6. Historical Wholesale'!D52 -> 38719.58 | E52: 3.3396 | F52: 129307.9094 | H52: ='6. Historical Wholesale'!H52 -> 39919.84 | I52: 0.7791 | J52: 31101.54734 | L52: ='6. Historical Wholesale'!L52 -> 39919.84 | M52: 1.7713 | N52: 70710.01259 | P52: 101811.5599
B53: November | D53: ='6. Historical Wholesale'!D53 -> 47999.06 | E53: 3.3396 | F53: 160297.6608 | H53: ='6. Historical Wholesale'!H53 -> 50241.05 | I53: 0.7791 | J53: 39142.80206 | L53: ='6. Historical Wholesale'!L53 -> 50241.05 | M53: 1.7713 | N53: 88991.97187 | P53: 128134.7739
B54: December | D54: ='6. Historical Wholesale'!D54 -> 39783.6 | E54: 3.3396 | F54: 132861.3106 | H54: ='6. Historical Wholesale'!H54 -> 43105.01 | I54: 0.7791 | J54: 33583.11329 | L54: ='6. Historical Wholesale'!L54 -> 43105.01 | M54: 1.7713 | N54: 76351.90421 | P54: 109935.0175
B56: Total | D56: =SUM(D43:D54) -> 510199.9 | E56: =IF(D56<>0,F56/D56,0) -> 3.346376337 | F56: =SUM(F43:F54) -> 1707320.873 | H56: =SUM(H43:H54) -> 527658.48 | I56: =IF(H56<>0,J56/H56,0) -> 0.7798978069 | J56: =SUM(J43:J54) -> 411519.6913 | L56: =SUM(L43:L54) -> 527658.48 | M56: =IF(L56<>0,N56/L56,0) -> 1.774065126 | N56: =SUM(N43:N54) -> 936100.5078 | P56: =SUM(P43:P54) -> 1347620.199
B58: ='6. Historical Wholesale'!B58 -> Add Extra Host Here (I) | D58: Network | H58: Line Connection | L58: Transformation Connection | P58: Total Line
B60: Month | D60: Units Billed | E60: Rate | F60: Amount | H60: Units Billed | I60: Rate | J60: Amount | L60: Units Billed | M60: Rate | N60: Amount | P60: Amount
B62: January | D62: ='6. Historical Wholesale'!D62 -> 0 | E62: ='5. UTRs and Sub-Transmission'!H51 -> 0 | F62: =D62*E62 -> 0 | H62: ='6. Historical Wholesale'!H62 -> 0 | I62: ='5. UTRs and Sub-Transmission'!H53 -> 0 | J62: =H62*I62 -> 0 | L62: ='6. Historical Wholesale'!L62 -> 0 | M62: ='5. UTRs and Sub-Transmission'!H55 -> 0 | N62: =L62*M62 -> 0 | P62: =J62+N62 -> 0
B63: February | D63: ='6. Historical Wholesale'!D63 -> 0 | E63: =E62 -> 0 | F63: =D63*E63 -> 0 | H63: ='6. Historical Wholesale'!H63 -> 0 | I63: =I62 -> 0 | J63: =H63*I63 -> 0 | L63: ='6. Historical Wholesale'!L63 -> 0 | M63: =M62 -> 0 | N63: =L63*M63 -> 0 | P63: 0
B64: March | D64: ='6. Historical Wholesale'!D64 -> 0 | E64: =E63 -> 0 | F64: 0 | H64: ='6. Historical Wholesale'!H64 -> 0 | I64: =I63 -> 0 | J64: 0 | L64: ='6. Historical Wholesale'!L64 -> 0 | M64: =M63 -> 0 | N64: 0 | P64: 0
B65: April | D65: ='6. Historical Wholesale'!D65 -> 0 | E65: 0 | F65: 0 | H65: ='6. Historical Wholesale'!H65 -> 0 | I65: 0 | J65: 0 | L65: ='6. Historical Wholesale'!L65 -> 0 | M65: =M64 -> 0 | N65: 0 | P65: 0
B66: May | D66: ='6. Historical Wholesale'!D66 -> 0 | E66: 0 | F66: 0 | H66: ='6. Historical Wholesale'!H66 -> 0 | I66: 0 | J66: 0 | L66: ='6. Historical Wholesale'!L66 -> 0 | M66: 0 | N66: 0 | P66: 0
B67: June | D67: ='6. Historical Wholesale'!D67 -> 0 | E67: 0 | F67: 0 | H67: ='6. Historical Wholesale'!H67 -> 0 | I67: 0 | J67: 0 | L67: ='6. Historical Wholesale'!L67 -> 0 | M67: 0 | N67: 0 | P67: 0
B68: July | D68: ='6. Historical Wholesale'!D68 -> 0 | E68: 0 | F68: 0 | H68: ='6. Historical Wholesale'!H68 -> 0 | I68: 0 | J68: 0 | L68: ='6. Historical Wholesale'!L68 -> 0 | M68: 0 | N68: 0 | P68: 0
B69: August | D69: ='6. Historical Wholesale'!D69 -> 0 | E69: 0 | F69: 0 | H69: ='6. Historical Wholesale'!H69 -> 0 | I69: 0 | J69: 0 | L69: ='6. Historical Wholesale'!L69 -> 0 | M69: 0 | N69: 0 | P69: 0
B70: September | D70: ='6. Historical Wholesale'!D70 -> 0 | E70: 0 | F70: 0 | H70: ='6. Historical Wholesale'!H70 -> 0 | I70: 0 | J70: 0 | L70: ='6. Historical Wholesale'!L70 -> 0 | M70: 0 | N70: 0 | P70: 0
B71: October | D71: ='6. Historical Wholesale'!D71 -> 0 | E71: 0 | F71: 0 | H71: ='6. Historical Wholesale'!H71 -> 0 | I71: 0 | J71: 0 | L71: ='6. Historical Wholesale'!L71 -> 0 | M71: 0 | N71: 0 | P71: 0
B72: November | D72: ='6. Historical Wholesale'!D72 -> 0 | E72: 0 | F72: 0 | H72: ='6. Historical Wholesale'!H72 -> 0 | I72: 0 | J72: 0 | L72: ='6. Historical Wholesale'!L72 -> 0 | M72: 0 | N72: 0 | P72: 0
B73: December | D73: ='6. Historical Wholesale'!D73 -> 0 | E73: 0 | F73: 0 | H73: ='6. Historical Wholesale'!H73 -> 0 | I73: 0 | J73: 0 | L73: ='6. Historical Wholesale'!L73 -> 0 | M73: 0 | N73: 0 | P73: 0
B75: Total | D75: =SUM(D62:D73) -> 0 | E75: =IF(D75<>0,F75/D75,0) -> 0 | F75: =SUM(F62:F73) -> 0 | H75: =SUM(H62:H73) -> 0 | I75: =IF(H75<>0,J75/H75,0) -> 0 | J75: =SUM(J62:J73) -> 0 | L75: =SUM(L62:L73) -> 0 | M75: =IF(L75<>0,N75/L75,0) -> 0 | N75: =SUM(N62:N73) -> 0 | P75: =SUM(P62:P73) -> 0
B77: ='6. Historical Wholesale'!B77 -> Add Extra Host Here (II) | D77: Network | H77: Line Connection | L77: Transformation Connection | P77: Total Line
B79: Month | D79: Units Billed | E79: Rate | F79: Amount | H79: Units Billed | I79: Rate | J79: Amount | L79: Units Billed | M79: Rate | N79: Amount | P79: Amount
B81: January | D81: ='6. Historical Wholesale'!D81 -> 0 | E81: ='5. UTRs and Sub-Transmission'!H66 -> 0 | F81: =D81*E81 -> 0 | H81: ='6. Historical Wholesale'!H81 -> 0 | I81: ='5. UTRs and Sub-Transmission'!H68 -> 0 | J81: =H81*I81 -> 0 | L81: ='6. Historical Wholesale'!L81 -> 0 | M81: ='5. UTRs and Sub-Transmission'!H70 -> 0 | N81: =L81*M81 -> 0 | P81: =J81+N81 -> 0
B82: February | D82: ='6. Historical Wholesale'!D82 -> 0 | E82: =E81 -> 0 | F82: =D82*E82 -> 0 | H82: ='6. Historical Wholesale'!H82 -> 0 | I82: =I81 -> 0 | J82: =H82*I82 -> 0 | L82: ='6. Historical Wholesale'!L82 -> 0 | M82: =M81 -> 0 | N82: =L82*M82 -> 0 | P82: 0
B83: March | D83: ='6. Historical Wholesale'!D83 -> 0 | E83: =E82 -> 0 | F83: 0 | H83: ='6. Historical Wholesale'!H83 -> 0 | I83: =I82 -> 0 | J83: 0 | L83: ='6. Historical Wholesale'!L83 -> 0 | M83: =M82 -> 0 | N83: 0 | P83: 0
B84: April | D84: ='6. Historical Wholesale'!D84 -> 0 | E84: 0 | F84: 0 | H84: ='6. Historical Wholesale'!H84 -> 0 | I84: 0 | J84: 0 | L84: ='6. Historical Wholesale'!L84 -> 0 | M84: =M83 -> 0 | N84: 0 | P84: 0
B85: May | D85: ='6. Historical Wholesale'!D85 -> 0 | E85: 0 | F85: 0 | H85: ='6. Historical Wholesale'!H85 -> 0 | I85: 0 | J85: 0 | L85: ='6. Historical Wholesale'!L85 -> 0 | M85: 0 | N85: 0 | P85: 0
B86: June | D86: ='6. Historical Wholesale'!D86 -> 0 | E86: 0 | F86: 0 | H86: ='6. Historical Wholesale'!H86 -> 0 | I86: 0 | J86: 0 | L86: ='6. Historical Wholesale'!L86 -> 0 | M86: 0 | N86: 0 | P86: 0
B87: July | D87: ='6. Historical Wholesale'!D87 -> 0 | E87: 0 | F87: 0 | H87: ='6. Historical Wholesale'!H87 -> 0 | I87: 0 | J87: 0 | L87: ='6. Historical Wholesale'!L87 -> 0 | M87: 0 | N87: 0 | P87: 0
B88: August | D88: ='6. Historical Wholesale'!D88 -> 0 | E88: 0 | F88: 0 | H88: ='6. Historical Wholesale'!H88 -> 0 | I88: 0 | J88: 0 | L88: ='6. Historical Wholesale'!L88 -> 0 | M88: 0 | N88: 0 | P88: 0
B89: September | D89: ='6. Historical Wholesale'!D89 -> 0 | E89: 0 | F89: 0 | H89: ='6. Historical Wholesale'!H89 -> 0 | I89: 0 | J89: 0 | L89: ='6. Historical Wholesale'!L89 -> 0 | M89: 0 | N89: 0 | P89: 0
B90: October | D90: ='6. Historical Wholesale'!D90 -> 0 | E90: 0 | F90: 0 | H90: ='6. Historical Wholesale'!H90 -> 0 | I90: 0 | J90: 0 | L90: ='6. Historical Wholesale'!L90 -> 0 | M90: 0 | N90: 0 | P90: 0
B91: November | D91: ='6. Historical Wholesale'!D91 -> 0 | E91: 0 | F91: 0 | H91: ='6. Historical Wholesale'!H91 -> 0 | I91: 0 | J91: 0 | L91: ='6. Historical Wholesale'!L91 -> 0 | M91: 0 | N91: 0 | P91: 0
B92: December | D92: ='6. Historical Wholesale'!D92 -> 0 | E92: 0 | F92: 0 | H92: ='6. Historical Wholesale'!H92 -> 0 | I92: 0 | J92: 0 | L92: ='6. Historical Wholesale'!L92 -> 0 | M92: 0 | N92: 0 | P92: 0
B94: Total | D94: =SUM(D81:D92) -> 0 | E94: =IF(D94<>0,F94/D94,0) -> 0 | F94: =SUM(F81:F92) -> 0 | H94: =SUM(H81:H92) -> 0 | I94: =IF(H94<>0,J94/H94,0) -> 0 | J94: =SUM(J81:J92) -> 0 | L94: =SUM(L81:L92) -> 0 | M94: =IF(L94<>0,N94/L94,0) -> 0 | N94: =SUM(N81:N92) -> 0 | P94: =SUM(P81:P92) -> 0
B96: Total | D96: Network | H96: Line Connection | L96: Transformation Connection | P96: Total Line
B98: Month | D98: Units Billed | E98: Rate | F98: Amount | H98: Units Billed | I98: Rate | J98: Amount | L98: Units Billed | M98: Rate | N98: Amount | P98: Amount
B100: January | D100: =D24+D43+D62+D81 -> 47686.71 | E100: =IF(D100<>0,F100/D100,0) -> 3.4121 | F100: =F24+F43+F62+F81 -> 162711.8232 | H100: =H24+H43+H62+H81 -> 47837.45 | I100: =IF(H100<>0,J100/H100,0) -> 0.7879 | J100: =J24+J43+J62+J81 -> 37691.12686 | L100: =L24+L43+L62+L81 -> 47837.45 | M100: =IF(L100<>0,N100/L100,0) -> 1.8018 | N100: =N24+N43+N62+N81 -> 86193.51741 | P100: =J100+N100 -> 123884.6443
B101: February | D101: =D25+D44+D63+D82 -> 49315.15 | E101: 3.3396 | F101: =F25+F44+F63+F82 -> 164692.8749 | H101: =H25+H44+H63+H82 -> 50980.83 | I101: 0.7791 | J101: =J25+J44+J63+J82 -> 39719.16465 | L101: =L25+L44+L63+L82 -> 50980.83 | M101: 1.7713 | N101: =N25+N44+N63+N82 -> 90302.34418 | P101: 130021.5088
B102: March | D102: 36964.64 | E102: 3.3396 | F102: 123447.1117 | H102: 40349.38 | I102: 0.7791 | J102: 31436.20196 | L102: 40349.38 | M102: 1.7713 | N102: 71470.85679 | P102: 102907.0588
B103: April | D103: 34228 | E103: 3.3396 | F103: 114307.8288 | H103: 36126.46 | I103: 0.7791 | J103: 28146.12499 | L103: 36126.46 | M103: 1.7713 | N103: 63990.7986 | P103: 92136.92358
B104: May | D104: 37837.44 | E104: 3.3396 | F104: 126361.9146 | H104: 38096.48 | I104: 0.7791 | J104: 29680.96757 | L104: 38096.48 | M104: 1.7713 | N104: 67480.29502 | P104: 97161.26259
B105: June | D105: 40588.63 | E105: 3.3396 | F105: 135549.7887 | H105: 40594.4 | I105: 0.7791 | J105: 31627.09704 | L105: 40594.4 | M105: 1.7713 | N105: 71904.86072 | P105: 103531.9578
B106: July | D106: 48974.8 | E106: 3.3396 | F106: 163556.2421 | H106: 48974.8 | I106: 0.7791 | J106: 38156.26668 | L106: 48974.8 | M106: 1.7713 | N106: 86749.06324 | P106: 124905.3299
B107: August | D107: 48999.38 | E107: 3.3396 | F107: 163638.3294 | H107: 50218.25 | I107: 0.7791 | J107: 39125.03857 | L107: 50218.25 | M107: 1.7713 | N107: 88951.58623 | P107: 128076.6248
B108: September | D108: 39102.91 | E108: 3.3396 | F108: 130588.0782 | H108: 41214.53 | I108: 0.7791 | J108: 32110.24032 | L108: 41214.53 | M108: 1.7713 | N108: 73003.29699 | P108: 105113.5373
B109: October | D109: 38719.58 | E109: 3.3396 | F109: 129307.9094 | H109: 39919.84 | I109: 0.7791 | J109: 31101.54734 | L109: 39919.84 | M109: 1.7713 | N109: 70710.01259 | P109: 101811.5599
B110: November | D110: 47999.06 | E110: 3.3396 | F110: 160297.6608 | H110: 50241.05 | I110: 0.7791 | J110: 39142.80206 | L110: 50241.05 | M110: 1.7713 | N110: 88991.97187 | P110: 128134.7739
B111: December | D111: 39783.6 | E111: 3.3396 | F111: 132861.3106 | H111: 43105.01 | I111: 0.7791 | J111: 33583.11329 | L111: 43105.01 | M111: 1.7713 | N111: 76351.90421 | P111: 109935.0175
B113: Total | D113: =SUM(D100:D111) -> 510199.9 | E113: =IF(D113<>0,F113/D113,0) -> 3.346376337 | F113: =SUM(F100:F111) -> 1707320.873 | H113: =SUM(H100:H111) -> 527658.48 | I113: =IF(H113<>0,J113/H113,0) -> 0.7798978069 | J113: =SUM(J100:J111) -> 411519.6913 | L113: =SUM(L100:L111) -> 527658.48 | M113: =IF(L113<>0,N113/L113,0) -> 1.774065126 | N113: =SUM(N100:N111) -> 936100.5078 | P113: =SUM(P100:P111) -> 1347620.199
N115: Low Voltage Switchgear Credit (if applicable) | P115: ='5. UTRs and Sub-Transmission'!H75 -> 0
N117: Total including deduction for Low Voltage Switchgear Credit | P117: =P113+P115 -> 1347620.199

Sheet 8. Forecast Wholesale
B13: The purpose of this sheet is to calculate the expected billing when forecasted 2017 Uniform Transmission Rates are applied against historical 2015 transmission units.
B20: IESO | D20: Network | H20: Line Connection | L20: Transformation Connection | P20: Total Line
B22: Month | D22: Units Billed | E22: Rate | F22: Amount | H22: Units Billed | I22: Rate | J22: Amount | L22: Units Billed | M22: Rate | N22: Amount | P22: Amount
B24: January | D24: ='6. Historical Wholesale'!D24 -> 0 | E24: ='5. UTRs and Sub-Transmission'!J22 -> 3.66 | F24: =D24*E24 -> 0 | H24: ='6. Historical Wholesale'!H24 -> 0 | I24: ='5. UTRs and Sub-Transmission'!J24 -> 0.87 | J24: =H24*I24 -> 0 | L24: ='6. Historical Wholesale'!L24 -> 0 | M24: ='5. UTRs and Sub-Transmission'!J26 -> 2.02 | N24: =L24*M24 -> 0 | P24: =J24+N24 -> 0
B25: February | D25: ='6. Historical Wholesale'!D25 -> 0 | E25: =E24 -> 3.66 | F25: 0 | H25: ='6. Historical Wholesale'!H25 -> 0 | I25: =I24 -> 0.87 | J25: 0 | L25: ='6. Historical Wholesale'!L25 -> 0 | M25: =M24 -> 2.02 | N25: 0 | P25: 0
B26: March | D26: ='6. Historical Wholesale'!D26 -> 0 | E26: 3.66 | F26: 0 | H26: ='6. Historical Wholesale'!H26 -> 0 | I26: 0.87 | J26: 0 | L26: ='6. Historical Wholesale'!L26 -> 0 | M26: 2.02 | N26: 0 | P26: 0
B27: April | D27: ='6. Historical Wholesale'!D27 -> 0 | E27: 3.66 | F27: 0 | H27: ='6. Historical Wholesale'!H27 -> 0 | I27: 0.87 | J27: 0 | L27: ='6. Historical Wholesale'!L27 -> 0 | M27: 2.02 | N27: 0 | P27: 0
B28: May | D28: ='6. Historical Wholesale'!D28 -> 0 | E28: 3.66 | F28: 0 | H28: ='6. Historical Wholesale'!H28 -> 0 | I28: 0.87 | J28: 0 | L28: ='6. Historical Wholesale'!L28 -> 0 | M28: 2.02 | N28: 0 | P28: 0
B29: June | D29: ='6. Historical Wholesale'!D29 -> 0 | E29: 3.66 | F29: 0 | H29: ='6. Historical Wholesale'!H29 -> 0 | I29: 0.87 | J29: 0 | L29: ='6. Historical Wholesale'!L29 -> 0 | M29: 2.02 | N29: 0 | P29: 0
B30: July | D30: ='6. Historical Wholesale'!D30 -> 0 | E30: 3.66 | F30: 0 | H30: ='6. Historical Wholesale'!H30 -> 0 | I30: 0.87 | J30: 0 | L30: ='6. Historical Wholesale'!L30 -> 0 | M30: 2.02 | N30: 0 | P30: 0
B31: August | D31: ='6. Historical Wholesale'!D31 -> 0 | E31: 3.66 | F31: 0 | H31: ='6. Historical Wholesale'!H31 -> 0 | I31: 0.87 | J31: 0 | L31: ='6. Historical Wholesale'!L31 -> 0 | M31: 2.02 | N31: 0 | P31: 0
B32: September | D32: ='6. Historical Wholesale'!D32 -> 0 | E32: 3.66 | F32: 0 | H32: ='6. Historical Wholesale'!H32 -> 0 | I32: 0.87 | J32: 0 | L32: ='6. Historical Wholesale'!L32 -> 0 | M32: 2.02 | N32: 0 | P32: 0
B33: October | D33: ='6. Historical Wholesale'!D33 -> 0 | E33: 3.66 | F33: 0 | H33: ='6. Historical Wholesale'!H33 -> 0 | I33: 0.87 | J33: 0 | L33: ='6. Historical Wholesale'!L33 -> 0 | M33: 2.02 | N33: 0 | P33: 0
B34: November | D34: ='6. Historical Wholesale'!D34 -> 0 | E34: 3.66 | F34: 0 | H34: ='6. Historical Wholesale'!H34 -> 0 | I34: 0.87 | J34: 0 | L34: ='6. Historical Wholesale'!L34 -> 0 | M34: 2.02 | N34: 0 | P34: 0
B35: December | D35: ='6. Historical Wholesale'!D35 -> 0 | E35: 3.66 | F35: 0 | H35: ='6. Historical Wholesale'!H35 -> 0 | I35: 0.87 | J35: 0 | L35: ='6. Historical Wholesale'!L35 -> 0 | M35: 2.02 | N35: 0 | P35: 0
B37: Total | D37: =SUM(D24:D35) -> 0 | E37: =IF(D37<>0,F37/D37,0) -> 0 | F37: =SUM(F24:F35) -> 0 | H37: =SUM(H24:H35) -> 0 | I37: =IF(H37<>0,J37/H37,0) -> 0 | J37: =SUM(J24:J35) -> 0 | L37: =SUM(L24:L35) -> 0 | M37: =IF(L37<>0,N37/L37,0) -> 0 | N37: =SUM(N24:N35) -> 0 | P37: =SUM(P24:P35) -> 0
B39: Hydro One | D39: Network | H39: Line Connection | L39: Transformation Connection | P39: Total Line
B41: Month | D41: Units Billed | E41: Rate | F41: Amount | H41: Units Billed | I41: Rate | J41: Amount | L41: Units Billed | M41: Rate | N41: Amount | P41: Amount
B43: January | D43: ='6. Historical Wholesale'!D43 -> 47686.71 | E43: ='5. UTRs and Sub-Transmission'!J36 -> 3.1942 | F43: =D43*E43 -> 152320.8891 | H43: ='6. Historical Wholesale'!H43 -> 47837.45 | I43: ='5. UTRs and Sub-Transmission'!J38 -> 0.771 | J43: =H43*I43 -> 36882.67395 | L43: ='6. Historical Wholesale'!L43 -> 47837.45 | M43: ='5. UTRs and Sub-Transmission'!J40 -> 1.7493 | N43: =L43*M43 -> 83682.05128 | P43: =J43+N43 -> 120564.7252
B44: February | D44: ='6. Historical Wholesale'!D44 -> 49315.15 | E44: =E43 -> 3.1942 | F44: 157522.4521 | H44: ='6. Historical Wholesale'!H44 -> 50980.83 | I44: =I43 -> 0.771 | J44: 39306.21993 | L44: ='6. Historical Wholesale'!L44 -> 50980.83 | M44: =M43 -> 1.7493 | N44: 89180.76592 | P44: 128486.9858
B45: March | D45: ='6. Historical Wholesale'!D45 -> 36964.64 | E45: 3.1942 | F45: 118072.4531 | H45: ='6. Historical Wholesale'!H45 -> 40349.38 | I45: 0.771 | J45: 31109.37198 | L45: ='6. Historical Wholesale'!L45 -> 40349.38 | M45: 1.7493 | N45: 70583.17043 | P45: 101692.5424
B46: April | D46: ='6. Historical Wholesale'!D46 -> 34228 | E46: 3.1942 | F46: 109331.0776 | H46: ='6. Historical Wholesale'!H46 -> 36126.46 | I46: 0.771 | J46: 27853.50066 | L46: ='6. Historical Wholesale'!L46 -> 36126.46 | M46: 1.7493 | N46: 63196.01648 | P46: 91049.51714
B47: May | D47: ='6. Historical Wholesale'!D47 -> 37837.44 | E47: 3.1942 | F47: 120860.3508 | H47: ='6. Historical Wholesale'!H47 -> 38096.48 | I47: 0.771 | J47: 29372.38608 | L47: ='6. Historical Wholesale'!L47 -> 38096.48 | M47: 1.7493 | N47: 66642.17246 | P47: 96014.55854
B48: June | D48: ='6. Historical Wholesale'!D48 -> 40588.63 | E48: 3.1942 | F48: 129648.2019 | H48: ='6. Historical Wholesale'!H48 -> 40594.4 | I48: 0.771 | J48: 31298.2824 | L48: ='6. Historical Wholesale'!L48 -> 40594.4 | M48: 1.7493 | N48: 71011.78392 | P48: 102310.0663
B49: July | D49: ='6. Historical Wholesale'!D49 -> 48974.8 | E49: 3.1942 | F49: 156435.3062 | H49: ='6. Historical Wholesale'!H49 -> 48974.8 | I49: 0.771 | J49: 37759.5708 | L49: ='6. Historical Wholesale'!L49 -> 48974.8 | M49: 1.7493 | N49: 85671.61764 | P49: 123431.1884
B50: August | D50: ='6. Historical Wholesale'!D50 -> 48999.38 | E50: 3.1942 | F50: 156513.8196 | H50: ='6. Historical Wholesale'!H50 -> 50218.25 | I50: 0.771 | J50: 38718.27075 | L50: ='6. Historical Wholesale'!L50 -> 50218.25 | M50: 1.7493 | N50: 87846.78473 | P50: 126565.0555
B51: September | D51: ='6. Historical Wholesale'!D51 -> 39102.91 | E51: 3.1942 | F51: 124902.5151 | H51: ='6. Historical Wholesale'!H51 -> 41214.53 | I51: 0.771 | J51: 31776.40263 | L51: ='6. Historical Wholesale'!L51 -> 41214.53 | M51: 1.7493 | N51: 72096.57733 | P51: 103872.98
B52: October | D52: ='6. Historical Wholesale'!D52 -> 38719.58 | E52: 3.1942 | F52: 123678.0824 | H52: ='6. Historical Wholesale'!H52 -> 39919.84 | I52: 0.771 | J52: 30778.19664 | L52: ='6. Historical Wholesale'!L52 -> 39919.84 | M52: 1.7493 | N52: 69831.77611 | P52: 100609.9728
B53: November | D53: ='6. Historical Wholesale'!D53 -> 47999.06 | E53: 3.1942 | F53: 153318.5975 | H53: ='6. Historical Wholesale'!H53 -> 50241.05 | I53: 0.771 | J53: 38735.84955 | L53: ='6. Historical Wholesale'!L53 -> 50241.05 | M53: 1.7493 | N53: 87886.66877 | P53: 126622.5183
B54: December | D54: ='6. Historical Wholesale'!D54 -> 39783.6 | E54: 3.1942 | F54: 127076.7751 | H54: ='6. Historical Wholesale'!H54 -> 43105.01 | I54: 0.771 | J54: 33233.96271 | L54: ='6. Historical Wholesale'!L54 -> 43105.01 | M54: 1.7493 | N54: 75403.59399 | P54: 108637.5567
B56: Total | D56: =SUM(D43:D54) -> 510199.9 | E56: =IF(D56<>0,F56/D56,0) -> 3.1942 | F56: =SUM(F43:F54) -> 1629680.521 | H56: =SUM(H43:H54) -> 527658.48 | I56: =IF(H56<>0,J56/H56,0) -> 0.771 | J56: =SUM(J43:J54) -> 406824.6881 | L56: =SUM(L43:L54) -> 527658.48 | M56: =IF(L56<>0,N56/L56,0) -> 1.7493 | N56: =SUM(N43:N54) -> 923032.9791 | P56: =SUM(P43:P54) -> 1329857.667
B58: ='6. Historical Wholesale'!B58 -> Add Extra Host Here (I) | D58: Network | H58: Line Connection | L58: Transformation Connection | P58: Total Line
B60: Month | D60: Units Billed | E60: Rate | F60: Amount | H60: Units Billed | I60: Rate | J60: Amount | L60: Units Billed | M60: Rate | N60: Amount | P60: Amount
B62: January | D62: ='6. Historical Wholesale'!D62 -> 0 | E62: ='5. UTRs and Sub-Transmission'!J51 -> 0 | F62: =D62*E62 -> 0 | H62: ='6. Historical Wholesale'!H62 -> 0 | I62: ='5. UTRs and Sub-Transmission'!J53 -> 0 | J62: =H62*I62 -> 0 | L62: ='6. Historical Wholesale'!L62 -> 0 | M62: ='5. UTRs and Sub-Transmission'!J55 -> 0 | N62: =L62*M62 -> 0 | P62: =J62+N62 -> 0
B63: February | D63: ='6. Historical Wholesale'!D63 -> 0 | E63: =E62 -> 0 | F63: 0 | H63: ='6. Historical Wholesale'!H63 -> 0 | I63: =I62 -> 0 | J63: 0 | L63: ='6. Historical Wholesale'!L63 -> 0 | M63: =M62 -> 0 | N63: 0 | P63: 0
B64: March | D64: ='6. Historical Wholesale'!D64 -> 0 | E64: 0 | F64: 0 | H64: ='6. Historical Wholesale'!H64 -> 0 | I64: 0 | J64: 0 | L64: ='6. Historical Wholesale'!L64 -> 0 | M64: 0 | N64: 0 | P64: 0
B65: April | D65: ='6. Historical Wholesale'!D65 -> 0 | E65: 0 | F65: 0 | H65: ='6. Historical Wholesale'!H65 -> 0 | I65: 0 | J65: 0 | L65: ='6. Historical Wholesale'!L65 -> 0 | M65: 0 | N65: 0 | P65: 0
B66: May | D66: ='6. Historical Wholesale'!D66 -> 0 | E66: 0 | F66: 0 | H66: ='6. Historical Wholesale'!H66 -> 0 | I66: 0 | J66: 0 | L66: ='6. Historical Wholesale'!L66 -> 0 | M66: 0 | N66: 0 | P66: 0
B67: June | D67: ='6. Historical Wholesale'!D67 -> 0 | E67: 0 | F67: 0 | H67: ='6. Historical Wholesale'!H67 -> 0 | I67: 0 | J67: 0 | L67: ='6. Historical Wholesale'!L67 -> 0 | M67: 0 | N67: 0 | P67: 0
B68: July | D68: ='6. Historical Wholesale'!D68 -> 0 | E68: 0 | F68: 0 | H68: ='6. Historical Wholesale'!H68 -> 0 | I68: 0 | J68: 0 | L68: ='6. Historical Wholesale'!L68 -> 0 | M68: 0 | N68: 0 | P68: 0
B69: August | D69: ='6. Historical Wholesale'!D69 -> 0 | E69: 0 | F69: 0 | H69: ='6. Historical Wholesale'!H69 -> 0 | I69: 0 | J69: 0 | L69: ='6. Historical Wholesale'!L69 -> 0 | M69: 0 | N69: 0 | P69: 0
B70: September | D70: ='6. Historical Wholesale'!D70 -> 0 | E70: 0 | F70: 0 | H70: ='6. Historical Wholesale'!H70 -> 0 | I70: 0 | J70: 0 | L70: ='6. Historical Wholesale'!L70 -> 0 | M70: 0 | N70: 0 | P70: 0
B71: October | D71: ='6. Historical Wholesale'!D71 -> 0 | E71: 0 | F71: 0 | H71: ='6. Historical Wholesale'!H71 -> 0 | I71: 0 | J71: 0 | L71: ='6. Historical Wholesale'!L71 -> 0 | M71: 0 | N71: 0 | P71: 0
B72: November | D72: ='6. Historical Wholesale'!D72 -> 0 | E72: 0 | F72: 0 | H72: ='6. Historical Wholesale'!H72 -> 0 | I72: 0 | J72: 0 | L72: ='6. Historical Wholesale'!L72 -> 0 | M72: 0 | N72: 0 | P72: 0
B73: December | D73: ='6. Historical Wholesale'!D73 -> 0 | E73: 0 | F73: 0 | H73: ='6. Historical Wholesale'!H73 -> 0 | I73: 0 | J73: 0 | L73: ='6. Historical Wholesale'!L73 -> 0 | M73: 0 | N73: 0 | P73: 0
B75: Total | D75: =SUM(D62:D73) -> 0 | E75: =IF(D75<>0,F75/D75,0) -> 0 | F75: =SUM(F62:F73) -> 0 | H75: =SUM(H62:H73) -> 0 | I75: =IF(H75<>0,J75/H75,0) -> 0 | J75: =SUM(J62:J73) -> 0 | L75: =SUM(L62:L73) -> 0 | M75: =IF(L75<>0,N75/L75,0) -> 0 | N75: =SUM(N62:N73) -> 0 | P75: =SUM(P62:P73) -> 0
B77: ='6. Historical Wholesale'!B77 -> Add Extra Host Here (II) | D77: Network | H77: Line Connection | L77: Transformation Connection | P77: Total Line
B79: Month | D79: Units Billed | E79: Rate | F79: Amount | H79: Units Billed | I79: Rate | J79: Amount | L79: Units Billed | M79: Rate | N79: Amount | P79: Amount
B81: January | D81: ='6. Historical Wholesale'!D81 -> 0 | E81: ='5. UTRs and Sub-Transmission'!J66 -> 0 | F81: =D81*E81 -> 0 | H81: ='6. Historical Wholesale'!H81 -> 0 | I81: ='5. UTRs and Sub-Transmission'!J68 -> 0 | J81: =H81*I81 -> 0 | L81: ='6. Historical Wholesale'!L81 -> 0 | M81: ='5. UTRs and Sub-Transmission'!J70 -> 0 | N81: =L81*M81 -> 0 | P81: =J81+N81 -> 0
B82: February | D82: ='6. Historical Wholesale'!D82 -> 0 | E82: =E81 -> 0 | F82: 0 | H82: ='6. Historical Wholesale'!H82 -> 0 | I82: =I81 -> 0 | J82: 0 | L82: ='6. Historical Wholesale'!L82 -> 0 | M82: =M81 -> 0 | N82: 0 | P82: 0
B83: March | D83: ='6. Historical Wholesale'!D83 -> 0 | E83: 0 | F83: 0 | H83: ='6. Historical Wholesale'!H83 -> 0 | I83: 0 | J83: 0 | L83: ='6. Historical Wholesale'!L83 -> 0 | M83: 0 | N83: 0 | P83: 0
B84: April | D84: ='6. Historical Wholesale'!D84 -> 0 | E84: 0 | F84: 0 | H84: ='6. Historical Wholesale'!H84 -> 0 | I84: 0 | J84: 0 | L84: ='6. Historical Wholesale'!L84 -> 0 | M84: 0 | N84: 0 | P84: 0
B85: May | D85: ='6. Historical Wholesale'!D85 -> 0 | E85: 0 | F85: 0 | H85: ='6. Historical Wholesale'!H85 -> 0 | I85: 0 | J85: 0 | L85: ='6. Historical Wholesale'!L85 -> 0 | M85: 0 | N85: 0 | P85: 0
B86: June | D86: ='6. Historical Wholesale'!D86 -> 0 | E86: 0 | F86: 0 | H86: ='6. Historical Wholesale'!H86 -> 0 | I86: 0 | J86: 0 | L86: ='6. Historical Wholesale'!L86 -> 0 | M86: 0 | N86: 0 | P86: 0
B87: July | D87: ='6. Historical Wholesale'!D87 -> 0 | E87: 0 | F87: 0 | H87: ='6. Historical Wholesale'!H87 -> 0 | I87: 0 | J87: 0 | L87: ='6. Historical Wholesale'!L87 -> 0 | M87: 0 | N87: 0 | P87: 0
B88: August | D88: ='6. Historical Wholesale'!D88 -> 0 | E88: 0 | F88: 0 | H88: ='6. Historical Wholesale'!H88 -> 0 | I88: 0 | J88: 0 | L88: ='6. Historical Wholesale'!L88 -> 0 | M88: 0 | N88: 0 | P88: 0
B89: September | D89: ='6. Historical Wholesale'!D89 -> 0 | E89: 0 | F89: 0 | H89: ='6. Historical Wholesale'!H89 -> 0 | I89: 0 | J89: 0 | L89: ='6. Historical Wholesale'!L89 -> 0 | M89: 0 | N89: 0 | P89: 0
B90: October | D90: ='6. Historical Wholesale'!D90 -> 0 | E90: 0 | F90: 0 | H90: ='6. Historical Wholesale'!H90 -> 0 | I90: 0 | J90: 0 | L90: ='6. Historical Wholesale'!L90 -> 0 | M90: 0 | N90: 0 | P90: 0
B91: November | D91: ='6. Historical Wholesale'!D91 -> 0 | E91: 0 | F91: 0 | H91: ='6. Historical Wholesale'!H91 -> 0 | I91: 0 | J91: 0 | L91: ='6. Historical Wholesale'!L91 -> 0 | M91: 0 | N91: 0 | P91: 0
B92: December | D92: ='6. Historical Wholesale'!D92 -> 0 | E92: 0 | F92: 0 | H92: ='6. Historical Wholesale'!H92 -> 0 | I92: 0 | J92: 0 | L92: ='6. Historical Wholesale'!L92 -> 0 | M92: 0 | N92: 0 | P92: 0
B94: Total | D94: =SUM(D81:D92) -> 0 | E94: =IF(D94<>0,F94/D94,0) -> 0 | F94: =SUM(F81:F92) -> 0 | H94: =SUM(H81:H92) -> 0 | I94: =IF(H94<>0,J94/H94,0) -> 0 | J94: =SUM(J81:J92) -> 0 | L94: =SUM(L81:L92) -> 0 | M94: =IF(L94<>0,N94/L94,0) -> 0 | N94: =SUM(N81:N92) -> 0 | P94: =SUM(P81:P92) -> 0
B96: Total | D96: Network | H96: Line Connection | L96: Transformation Connection | P96: Total Line
B98: Month | D98: Units Billed | E98: Rate | F98: Amount | H98: Units Billed | I98: Rate | J98: Amount | L98: Units Billed | M98: Rate | N98: Amount | P98: Amount
B100: January | D100: =D24+D43+D62+D81 -> 47686.71 | E100: =IF(D100<>0,F100/D100,0) -> 3.1942 | F100: =F24+F43+F62+F81 -> 152320.8891 | H100: =H24+H43+H62+H81 -> 47837.45 | I100: =IF(H100<>0,J100/H100,0) -> 0.771 | J100: =J24+J43+J62+J81 -> 36882.67395 | L100: =L24+L43+L62+L81 -> 47837.45 | M100: =IF(L100<>0,N100/L100,0) -> 1.7493 | N100: =N24+N43+N62+N81 -> 83682.05128 | P100: =J100+N100 -> 120564.7252
B101: February | D101: =D25+D44+D63+D82 -> 49315.15 | E101: 3.1942 | F101: 157522.4521 | H101: =H25+H44+H63+H82 -> 50980.83 | I101: 0.771 | J101: =J25+J44+J63+J82 -> 39306.21993 | L101: =L25+L44+L63+L82 -> 50980.83 | M101: 1.7493 | N101: =N25+N44+N63+N82 -> 89180.76592 | P101: 128486.9858
B102: March | D102: 36964.64 | E102: 3.1942 | F102: 118072.4531 | H102: =H26+H45+H64+H83 -> 40349.38 | I102: 0.771 | J102: =J26+J45+J64+J83 -> 31109.37198 | L102: =L26+L45+L64+L83 -> 40349.38 | M102: 1.7493 | N102: =N26+N45+N64+N83 -> 70583.17043 | P102: 101692.5424
B103: April | D103: 34228 | E103: 3.1942 | F103: 109331.0776 | H103: =H27+H46+H65+H84 -> 36126.46 | I103: 0.771 | J103: =J27+J46+J65+J84 -> 27853.50066 | L103: =L27+L46+L65+L84 -> 36126.46 | M103: 1.7493 | N103: =N27+N46+N65+N84 -> 63196.01648 | P103: 91049.51714
B104: May | D104: 37837.44 | E104: 3.1942 | F104: 120860.3508 | H104: =H28+H47+H66+H85 -> 38096.48 | I104: 0.771 | J104: =J28+J47+J66+J85 -> 29372.38608 | L104: =L28+L47+L66+L85 -> 38096.48 | M104: 1.7493 | N104: =N28+N47+N66+N85 -> 66642.17246 | P104: 96014.55854
B105: June | D105: 40588.63 | E105: 3.1942 | F105: 129648.2019 | H105: =H29+H48+H67+H86 -> 40594.4 | I105: 0.771 | J105: =J29+J48+J67+J86 -> 31298.2824 | L105: =L29+L48+L67+L86 -> 40594.4 | M105: 1.7493 | N105: =N29+N48+N67+N86 -> 71011.78392 | P105: 102310.0663
B106: July | D106: 48974.8 | E106: 3.1942 | F106: 156435.3062 | H106: =H30+H49+H68+H87 -> 48974.8 | I106: 0.771 | J106: =J30+J49+J68+J87 -> 37759.5708 | L106: =L30+L49+L68+L87 -> 48974.8 | M106: 1.7493 | N106: =N30+N49+N68+N87 -> 85671.61764 | P106: 123431.1884
B107: August | D107: 48999.38 | E107: 3.1942 | F107: 156513.8196 | H107: =H31+H50+H69+H88 -> 50218.25 | I107: 0.771 | J107: =J31+J50+J69+J88 -> 38718.27075 | L107: =L31+L50+L69+L88 -> 50218.25 | M107: 1.7493 | N107: =N31+N50+N69+N88 -> 87846.78473 | P107: 126565.0555
B108: September | D108: 39102.91 | E108: 3.1942 | F108: 124902.5151 | H108: =H32+H51+H70+H89 -> 41214.53 | I108: 0.771 | J108: =J32+J51+J70+J89 -> 31776.40263 | L108: =L32+L51+L70+L89 -> 41214.53 | M108: 1.7493 | N108: =N32+N51+N70+N89 -> 72096.57733 | P108: 103872.98
B109: October | D109: 38719.58 | E109: 3.1942 | F109: 123678.0824 | H109: =H33+H52+H71+H90 -> 39919.84 | I109: 0.771 | J109: =J33+J52+J71+J90 -> 30778.19664 | L109: =L33+L52+L71+L90 -> 39919.84 | M109: 1.7493 | N109: =N33+N52+N71+N90 -> 69831.77611 | P109: 100609.9728
B110: November | D110: 47999.06 | E110: 3.1942 | F110: 153318.5975 | H110: =H34+H53+H72+H91 -> 50241.05 | I110: 0.771 | J110: =J34+J53+J72+J91 -> 38735.84955 | L110: =L34+L53+L72+L91 -> 50241.05 | M110: 1.7493 | N110: =N34+N53+N72+N91 -> 87886.66877 | P110: 126622.5183
B111: December | D111: 39783.6 | E111: 3.1942 | F111: 127076.7751 | H111: =H35+H54+H73+H92 -> 43105.01 | I111: 0.771 | J111: =J35+J54+J73+J92 -> 33233.96271 | L111: =L35+L54+L73+L92 -> 43105.01 | M111: 1.7493 | N111: =N35+N54+N73+N92 -> 75403.59399 | P111: 108637.5567
B113: Total | D113: =SUM(D100:D111) -> 510199.9 | E113: =IF(D113<>0,F113/D113,0) -> 3.1942 | F113: =SUM(F100:F111) -> 1629680.521 | H113: =SUM(H100:H111) -> 527658.48 | I113: =IF(H113<>0,J113/H113,0) -> 0.771 | J113: =SUM(J100:J111) -> 406824.6881 | L113: =SUM(L100:L111) -> 527658.48 | M113: =IF(L113<>0,N113/L113,0) -> 1.7493 | N113: =SUM(N100:N111) -> 923032.9791 | P113: =SUM(P100:P111) -> 1329857.667
N115: Low Voltage Switchgear Credit (if applicable) | P115: ='5. UTRs and Sub-Transmission'!J75 -> 0
N117: Total including deduction for Low Voltage Switchgear Credit | P117: =P113+P115 -> 1329857.667

Sheet 9. RTSR Rates to Forecast
A13: The purpose of this sheet is to re-align the current RTS Network Rates to recover current wholesale network costs.
A15: Rate Class | B15: Rate Description | C15: Unit | D15: Current RTSR-Network | E15: Loss Adjusted Billed kWh | F15: Billed kW | G15: Billed Amount | H15: Billed Amount % | I15: Current Wholesale Billing | J15: Adjusted RTSR Network
A17: Residential | B17: RTSR - Network | C17: kWh | D17: 0.0057 | E17: 159434853.9 | F17: 0 | G17: =ROUND(D17*E17, 2) -> 908778.67 | H17: =G17/1392349.53 -> 0.652694349 | I17: =H17*total_current_wholesale_network -> 1114358.685 | J17: =IF(ISERROR(I17/E17), 0, I17/E17) -> 0.00698942959
A18: General Service Less Than 50 kW | B18: RTSR - Network | C18: kWh | D18: 0.0052 | E18: 36017209 | F18: 0 | G18: =ROUND(D18*E18, 2) -> 187289.49 | H18: 0.1345132712 | I18: 229657.3156 | J18: =IF(ISERROR(I18/E18), 0, I18/E18) -> 0.00637632182
A19: General Service 50 to 4,999 kW | B19: RTSR - Network | C19: kW | D19: 2.0385 | F19: 66619 | G19: =ROUND(D19*F19, 2) -> 135802.83 | H19: 0.09753501335 | I19: 166523.5641 | J19: =IF(ISERROR(I19/F19), 0, I19/F19) -> 2.499640705
A20: General Service 50 to 4,999 kW – Interval Metered | B20: RTSR - Network | C20: kW | D20: 2.0385 | F20: 74982 | G20: =ROUND(D20*F20, 2) -> 152850.81 | H20: 0.109779051 | I20: 187428.0651 | J20: =IF(ISERROR(I20/F20), 0, I20/F20) -> 2.499640781
A21: Unmetered Scattered Load | B21: RTSR - Network | C21: kWh | D21: 0.0052 | E21: 494489.6376 | F21: 0 | G21: =ROUND(D21*E21, 2) -> 2571.35 | H21: 0.001846770473 | I21: 3153.029775 | J21: =IF(ISERROR(I21/E21), 0, I21/E21) -> 0.006376331343
A22: Sentinel Lighting | B22: RTSR - Network | C22: kW | D22: 1.5954 | F22: 298 | G22: =ROUND(D22*F22, 2) -> 475.43 | H22: 0.0003414588002 | I22: 582.9797367 | J22: =IF(ISERROR(I22/F22), 0, I22/F22) -> 1.956307841
A23: Street Lighting | B23: RTSR - Network | C23: kW | D23: 1.5873 | F23: 2886 | G23: =ROUND(D23*F23, 2) -> 4580.95 | H23: 0.003290086219 | I23: 5617.232873 | J23: =IF(ISERROR(I23/F23), 0, I23/F23) -> 1.946373137
A25: The purpose of this table is to re-align the current RTS Connection Rates to recover current wholesale connection costs.
A26: Rate Class | B26: Rate Description | C26: Unit | D26: Current RTSR-Connection | E26: Loss Adjusted Billed kWh | F26: Billed kW | G26: Billed Amount | H26: Billed Amount % | I26: Current Wholesale Billing | J26: Adjusted RTSR-Connection
A28: Residential | B28: RTSR - Connection | C28: kWh | D28: 0.0041 | E28: 159434853.9 | F28: 0 | G28: =ROUND(D28*E28, 2) -> 653682.9 | H28: =G28/1097688.97 -> 0.5955083069 | I28: =H28*Total_Current_Wholesale_Lineplus -> 802519.0231 | J28: =IF(ISERROR(I28/E28), 0, I28/E28) -> 0.00503352312
A29: General Service Less Than 50 kW | B29: RTSR - Connection | C29: kWh | D29: 0.0039 | E29: 36017209 | F29: 0 | G29: =ROUND(D29*E29, 2) -> 140467.12 | H29: 0.1279662307 | I29: 172449.8773 | J29: =IF(ISERROR(I29/E29), 0, I29/E29) -> 0.00478798558
A30: General Service 50 to 4,999 kW | B30: RTSR - Connection | C30: kW | D30: 2.1757 | F30: 66619 | G30: =ROUND(D30*F30, 2) -> 144942.96 | H30: 0.1320437428 | I30: 177944.8149 | J30: =IF(ISERROR(I30/F30), 0, I30/F30) -> 2.671082048
A31: General Service 50 to 4,999 kW – Interval Metered | B31: RTSR - Connection | C31: kW | D31: 2.0385 | F31: 74982 | G31: =ROUND(D31*F31, 2) -> 152850.81 | H31: 0.1392478327 | I31: 187653.192 | J31: =IF(ISERROR(I31/F31), 0, I31/F31) -> 2.502643194
A32: Unmetered Scattered Load | B32: RTSR - Connection | C32: kWh | D32: 0.0039 | E32: 494489.6376 | F32: 0 | G32: =ROUND(D32*E32, 2) -> 1928.51 | H32: 0.001756882006 | I32: 2367.609679 | J32: =IF(ISERROR(I32/E32), 0, I32/E32) -> 0.00478798644
A33: Sentinel Lighting | B33: RTSR - Connection | C33: kW | D33: 1.7004 | F33: 298 | G33: =ROUND(D33*F33, 2) -> 506.72 | H33: 0.0004616243889 | I33: 622.0943509 | J33: =IF(ISERROR(I33/F33), 0, I33/F33) -> 2.087564936
A34: Street Lighting | B34: RTSR - Connection | C34: kW | D34: 1.1469 | F34: 2886 | G34: =ROUND(D34*F34, 2) -> 3309.95 | H34: 0.003015380577 | I34: 4063.587774 | J34: =IF(ISERROR(I34/F34), 0, I34/F34) -> 1.408034572
A36: The purpose of this table is to update the re-aligned RTS Network Rates to recover future wholesale network costs.
A37: Rate Class | B37: Rate Description | C37: Unit | D37: Adjusted RTSR-Network | E37: Loss Adjusted Billed kWh | F37: Billed kW | G37: Billed Amount | H37: Billed Amount % | I37: Current Wholesale Billing | J37: Proposed RTSR-Network
A39: Residential | B39: RTSR - Network | C39: kWh | D39: 0.00698942959 | E39: 159434853.9 | F39: 0 | G39: =IF(ISERROR(D39*E39), 0, ROUND(D39*E39, 2)) -> 1114358.69 | H39: =G39/1707320.88 -> 0.6526943488 | I39: =H39*forecast_wholesale_network -> 1063683.266 | J39: =IF(ISERROR(I39/E39), 0, I39/E39) -> 0.006671585543
A40: General Service Less Than 50 kW | B40: RTSR - Network | C40: kWh | D40: 0.00637632182 | E40: 36017209 | F40: 0 | G40: =IF(ISERROR(D40*E40), 0, ROUND(D40*E40, 2)) -> 229657.32 | H40: 0.1345132732 | I40: 219213.6611 | J40: =IF(ISERROR(I40/E40), 0, I40/E40) -> 0.006086358916
A41: General Service 50 to 4,999 kW | B41: RTSR - Network | C41: kW | D41: 2.499640705 | F41: 66619 | G41: =ROUND(D41*F41, 2) -> 166523.56 | H41: 0.09753501052 | I41: 158950.9067 | J41: =IF(ISERROR(I41/F41), 0, I41/F41) -> 2.385969569
A42: General Service 50 to 4,999 kW – Interval Metered | B42: RTSR - Network | C42: kW | D42: 2.499640781 | F42: 74982 | G42: =ROUND(D42*F42, 2) -> 187428.07 | H42: 0.1097790534 | I42: 178904.7848 | J42: =IF(ISERROR(I42/F42), 0, I42/F42) -> 2.385969764
A43: Unmetered Scattered Load | B43: RTSR - Network | C43: kWh | D43: 0.006376331343 | E43: 494489.6376 | F43: 0 | G43: =IF(ISERROR(D43*E43), 0, ROUND(D43*E43, 2)) -> 3153.03 | H43: 0.001846770597 | I43: 3009.646067 | J43: =IF(ISERROR(I43/E43), 0, I43/E43) -> 0.006086368325
A44: Sentinel Lighting | B44: RTSR - Network | C44: kW | D44: 1.956307841 | F44: 298 | G44: =ROUND(D44*F44, 2) -> 582.98 | H44: 0.0003414589529 | I44: 556.4690042 | J44: =IF(ISERROR(I44/F44), 0, I44/F44) -> 1.867345652
A45: Street Lighting | B45: RTSR - Network | C45: kW | D45: 1.946373137 | F45: 2886 | G45: =ROUND(D45*F45, 2) -> 5617.23 | H45: 0.003290084521 | I45: 5361.786655 | J45: =IF(ISERROR(I45/F45), 0, I45/F45) -> 1.857860934
A47: The purpose of this table is to update the re-aligned RTS Connection Rates to recover future wholesale connection costs.
A48: Rate Class | B48: Rate Description | C48: Unit | D48: Adjusted RTSR-Connection | E48: Loss Adjusted Billed kWh | F48: Billed kW | G48: Billed Amount | H48: Billed Amount % | I48: Current Wholesale Billing | J48: Proposed RTSR-Connection
A50: Residential | B50: RTSR - Connection | C50: kWh | D50: 0.00503352312 | E50: 159434853.9 | F50: 0 | G50: =ROUND(D50*E50, 2) -> 802519.02 | H50: =G50/1347620.19 -> 0.5955083086 | I50: =H50*forecast_wholesale_lineplus -> 791941.2901 | J50: =IF(ISERROR(I50/E50), 0, I50/E50) -> 0.004967177947
A51: General Service Less Than 50 kW | B51: RTSR - Connection | C51: kWh | D51: 0.00478798558 | E51: 36017209 | F51: 0 | G51: =ROUND(D51*E51, 2) -> 172449.88 | H51: 0.1279662336 | I51: 170176.8769 | J51: =IF(ISERROR(I51/E51), 0, I51/E51) -> 0.004724876846
A52: General Service 50 to 4,999 kW | B52: RTSR - Connection | C52: kW | D52: 2.671082048 | F52: 66619 | G52: =ROUND(D52*F52, 2) -> 177944.81 | H52: 0.13204374 | I52: 175599.3801 | J52: =IF(ISERROR(I52/F52), 0, I52/F52) -> 2.635875352
A53: General Service 50 to 4,999 kW – Interval Metered | B53: RTSR - Connection | C53: kW | D53: 2.502643194 | F53: 74982 | G53: =ROUND(D53*F53, 2) -> 187653.19 | H53: 0.1392478321 | I53: 185179.7972 | J53: =IF(ISERROR(I53/F53), 0, I53/F53) -> 2.46965668
A54: Unmetered Scattered Load | B54: RTSR - Connection | C54: kWh | D54: 0.00478798644 | E54: 494489.6376 | F54: 0 | G54: =ROUND(D54*E54, 2) -> 2367.61 | H54: 0.001756882256 | I54: 2336.403339 | J54: =IF(ISERROR(I54/E54), 0, I54/E54) -> 0.004724878261
A55: Sentinel Lighting | B55: RTSR - Connection | C55: kW | D55: 2.087564936 | F55: 298 | G55: =ROUND(D55*F55, 2) -> 622.09 | H55: 0.0004616211635 | I55: 613.8904435 | J55: =IF(ISERROR(I55/F55), 0, I55/F55) -> 2.060035045
A56: Street Lighting | B56: RTSR - Connection | C56: kW | D56: 1.408034572 | F56: 2886 | G56: =ROUND(D56*F56, 2) -> 4063.59 | H56: 0.00301538225 | I56: 4010.029204 | J56: =IF(ISERROR(I56/F56), 0, I56/F56) -> 1.389476509

Sheet hidden1 (hidden)
A1: =IF('3. Rate Classes'!L17=1, '3. Rate Classes'!C17, "") -> Residential | B1: 1
A2: =IF('3. Rate Classes'!L18=1, '3. Rate Classes'!C18, "") -> General Service Less Than 50 kW | B2: 2
A3: =IF('3. Rate Classes'!L19=1, '3. Rate Classes'!C19, "") -> General Service 50 to 4,999 kW | B3: 3
A4: =IF('3. Rate Classes'!L20=1, '3. Rate Classes'!C20, "") -> General Service 50 to 4,999 kW – Interval Metered | B4: 4
A5: =IF('3. Rate Classes'!L21=1, '3. Rate Classes'!C21, "") -> Unmetered Scattered Load | B5: 5
A6: =IF('3. Rate Classes'!L22=1, '3. Rate Classes'!C22, "") -> Sentinel Lighting | B6: 6
A7: =IF('3. Rate Classes'!L23=1, '3. Rate Classes'!C23, "") -> Street Lighting | B7: 7
A8: =IF('3. Rate Classes'!L24=1, '3. Rate Classes'!C24, "") ->  | B8: 8
A9: =IF('3. Rate Classes'!L25=1, '3. Rate Classes'!C25, "") ->  | B9: 9
A10: =IF('3. Rate Classes'!L26=1, '3. Rate Classes'!C26, "") ->  | B10: 10
A11: =IF('3. Rate Classes'!L27=1, '3. Rate Classes'!C27, "") ->  | B11: 11
A12: =IF('3. Rate Classes'!L28=1, '3. Rate Classes'!C28, "") ->  | B12: 12
A13: =IF('3. Rate Classes'!L29=1, '3. Rate Classes'!C29, "") ->  | B13: 13
A14: =IF('3. Rate Classes'!L30=1, '3. Rate Classes'!C30, "") ->  | B14: 14
A15: =IF('3. Rate Classes'!L31=1, '3. Rate Classes'!C31, "") ->  | B15: 15
A16: =IF('3. Rate Classes'!L32=1, '3. Rate Classes'!C32, "") ->  | B16: 16
A17: =IF('3. Rate Classes'!L33=1, '3. Rate Classes'!C33, "") ->  | B17: 17
A18: =IF('3. Rate Classes'!L34=1, '3. Rate Classes'!C34, "") ->  | B18: 18
A19: =IF('3. Rate Classes'!L35=1, '3. Rate Classes'!C35, "") ->  | B19: 19
A20: =IF('3. Rate Classes'!L36=1, '3. Rate Classes'!C36, "") ->  | B20: 20
A21: =IF('3. Rate Classes'!L37=1, '3. Rate Classes'!C37, "") ->  | B21: 21
A22: =IF('3. Rate Classes'!L38=1, '3. Rate Classes'!C38, "") ->  | B22: 22
